[Event "Early-Titled-Tuesday-Blitz-May-07-2024"]
[Site "Chess.com"]
[Date "2024.05.07"]
[Round "8"]
[White "rikchessmx"]
[Black "kylnmd"]
[Result "1-0"]
[WhiteElo "2391"]
[BlackElo "2248"]
[TimeControl "180+1"]
[EndTime "9:34:25 PDT"]
[Termination "rikchessmx won by resignation"]

1. e4 {[%clk 0:03:00.9]} 1... c5 {[%clk 0:02:55.1]} 2. Nf3 {[%clk 0:03:00.5]}
2... e6 {[%clk 0:02:54.3]} 3. d4 {[%clk 0:03:00.7]} 3... cxd4 {[%clk 0:02:54.3]}
4. Nxd4 {[%clk 0:03:01.1]} 4... a6 {[%clk 0:02:54.6]} 5. Nc3 {[%clk 0:03:01.6]}
5... Qc7 {[%clk 0:02:53.8]} 6. Bd3 {[%clk 0:03:01.7]} 6... Nf6 {[%clk
0:02:53.2]} 7. Qf3 {[%clk 0:03:00.1]} 7... d6 {[%clk 0:02:51.2]} 8. Be3 {[%clk
0:02:57]} 8... Nbd7 {[%clk 0:02:50.8]} 9. Qg3 {[%clk 0:02:55.1]} 9... b5 {[%clk
0:02:47.5]} 10. a3 {[%clk 0:02:54.7]} 10... Bb7 {[%clk 0:02:39.6]} 11. O-O
{[%clk 0:02:53.1]} 11... Rc8 {[%clk 0:02:37.7]} 12. Rac1 {[%clk 0:02:50.9]}
12... d5 {[%clk 0:02:33.5]} 13. Qxc7 {[%clk 0:02:45.7]} 13... Rxc7 {[%clk
0:02:32.4]} 14. exd5 {[%clk 0:02:45.8]} 14... Nxd5 {[%clk 0:02:31.9]} 15. Nxd5
{[%clk 0:02:45.5]} 15... Bxd5 {[%clk 0:02:32]} 16. Rfe1 {[%clk 0:02:40.6]} 16...
Be7 {[%clk 0:02:30.4]} 17. Bf4 {[%clk 0:02:40.8]} 17... Rc8 {[%clk 0:02:29.3]}
18. a4 {[%clk 0:02:34.8]} 18... Bf6 {[%clk 0:02:16.5]} 19. Nf5 {[%clk
0:02:13.8]} 19... O-O {[%clk 0:02:12]} 20. Nd6 {[%clk 0:02:12.7]} 20... Rcd8
{[%clk 0:01:53.1]} 21. axb5 {[%clk 0:02:10.8]} 21... axb5 {[%clk 0:01:50.4]} 22.
Nxb5 {[%clk 0:02:01.8]} 22... Bxb2 {[%clk 0:01:49.6]} 23. Rb1 {[%clk 0:02:01.8]}
23... Bf6 {[%clk 0:01:48.6]} 24. Bd6 {[%clk 0:02:00.8]} 24... Ba2 {[%clk
0:01:21.6]} 25. Rbd1 {[%clk 0:01:54.2]} 25... Nb6 {[%clk 0:01:11.5]} 26. Bxf8
{[%clk 0:01:48.2]} 26... Rxf8 {[%clk 0:01:09.2]} 27. Nd6 {[%clk 0:01:43.6]}
27... Bc3 {[%clk 0:01:06.4]} 28. Rf1 {[%clk 0:01:43.5]} 28... f5 {[%clk
0:01:05]} 29. Nb5 {[%clk 0:01:37.3]} 29... Bf6 {[%clk 0:01:00.6]} 30. Rfe1
{[%clk 0:01:36.9]} 30... Rc8 {[%clk 0:00:56.5]} 31. h3 {[%clk 0:01:19.3]} 31...
g6 {[%clk 0:00:53.8]} 32. g4 {[%clk 0:01:18.4]} 32... Rc5 {[%clk 0:00:43.8]} 33.
Re2 {[%clk 0:01:09.1]} 33... Kf7 {[%clk 0:00:36.2]} 34. c4 {[%clk 0:00:57.1]}
34... Bxc4 {[%clk 0:00:33.3]} 35. Nd6+ {[%clk 0:00:55.8]} 35... Ke7 {[%clk
0:00:29.8]} 36. Nxc4 {[%clk 0:00:55.8]} 36... Nxc4 {[%clk 0:00:29.3]} 37. Rc1
{[%clk 0:00:54.9]} 37... Ne5 {[%clk 0:00:14.7]} 38. Rxc5 {[%clk 0:00:49.6]}
38... Nxd3 {[%clk 0:00:14.7]} 39. Rc7+ {[%clk 0:00:49.3]} 39... Kd6 {[%clk
0:00:14.5]} 40. Rxh7 {[%clk 0:00:48.1]} 40... e5 {[%clk 0:00:14.3]} 41. gxf5
{[%clk 0:00:46.2]} 41... gxf5 {[%clk 0:00:13.9]} 42. Rh6 {[%clk 0:00:46.5]}
42... Ke7 {[%clk 0:00:14]} 43. Ra2 {[%clk 0:00:44]} 43... Nf4 {[%clk 0:00:06.9]}
44. Ra7+ {[%clk 0:00:42.3]} 1-0

[Event "Early-Titled-Tuesday-Blitz-May-07-2024"]
[Site "Chess.com"]
[Date "2024.05.07"]
[Round "8"]
[White "akanga001"]
[Black "stepanosinovsky"]
[Result "0-1"]
[WhiteElo "2151"]
[BlackElo "2306"]
[TimeControl "180+1"]
[EndTime "9:34:26 PDT"]
[Termination "stepanosinovsky won on time"]

1. d4 {[%clk 0:02:50.8]} 1... Nf6 {[%clk 0:02:58]} 2. Nf3 {[%clk 0:02:50.7]}
2... g6 {[%clk 0:02:58.4]} 3. Bg5 {[%clk 0:02:50.7]} 3... Bg7 {[%clk 0:02:58.8]}
4. e3 {[%clk 0:02:50.9]} 4... O-O {[%clk 0:02:58.8]} 5. Nbd2 {[%clk 0:02:50.3]}
5... d6 {[%clk 0:02:56.2]} 6. c3 {[%clk 0:02:50.3]} 6... Nbd7 {[%clk 0:02:55.5]}
7. Be2 {[%clk 0:02:49.2]} 7... e5 {[%clk 0:02:55.7]} 8. Qc2 {[%clk 0:02:42.9]}
8... b6 {[%clk 0:02:49.6]} 9. a4 {[%clk 0:02:41.5]} 9... a6 {[%clk 0:02:48.1]}
10. O-O {[%clk 0:02:39.8]} 10... Bb7 {[%clk 0:02:47.8]} 11. Rfe1 {[%clk
0:02:26.5]} 11... c5 {[%clk 0:02:46.4]} 12. dxe5 {[%clk 0:02:14.6]} 12... dxe5
{[%clk 0:02:45.7]} 13. Rad1 {[%clk 0:02:13.1]} 13... e4 {[%clk 0:02:40.4]} 14.
Bxf6 {[%clk 0:01:03.2]} 14... Nxf6 {[%clk 0:02:33.6]} 15. Ng5 {[%clk 0:01:02.1]}
15... Qe7 {[%clk 0:02:22.3]} 16. Nh3 {[%clk 0:00:55.9]} 16... Rfe8 {[%clk
0:02:14.5]} 17. Nc4 {[%clk 0:00:55.2]} 17... Nd5 {[%clk 0:02:11.5]} 18. Nf4
{[%clk 0:00:48.5]} 18... Nxf4 {[%clk 0:02:10.3]} 19. exf4 {[%clk 0:00:48.8]}
19... Qc7 {[%clk 0:02:05.2]} 20. Nd6 {[%clk 0:00:46.6]} 20... Re7 {[%clk
0:02:03.1]} 21. Nxb7 {[%clk 0:00:43.4]} 21... Qxb7 {[%clk 0:02:04]} 22. Bc4
{[%clk 0:00:39.2]} 22... Rae8 {[%clk 0:01:57.1]} 23. Bd5 {[%clk 0:00:37.4]}
23... Qc7 {[%clk 0:01:54.6]} 24. g3 {[%clk 0:00:16.3]} 24... e3 {[%clk
0:01:50.6]} 25. fxe3 {[%clk 0:00:15.6]} 25... Rxe3 {[%clk 0:01:51.5]} 26. Rxe3
{[%clk 0:00:15.4]} 26... Rxe3 {[%clk 0:01:52.4]} 27. Kf2 {[%clk 0:00:14.3]}
27... Re8 {[%clk 0:01:33.1]} 28. Qd3 {[%clk 0:00:08.1]} 28... Bf8 {[%clk
0:00:41]} 29. Qxa6 {[%clk 0:00:06.1]} 29... c4 {[%clk 0:00:41.2]} 30. Qxc4
{[%clk 0:00:05.2]} 30... Bc5+ {[%clk 0:00:41.1]} 31. Kf3 {[%clk 0:00:04.6]}
31... Re3+ {[%clk 0:00:25.1]} 32. Kg2 {[%clk 0:00:04.5]} 32... Qe7 {[%clk
0:00:24.2]} 33. Rd2 {[%clk 0:00:04.5]} 33... Re1 {[%clk 0:00:23.3]} 34. Qe4
{[%clk 0:00:02.6]} 34... Rxe4 {[%clk 0:00:22.9]} 35. Bxe4 {[%clk 0:00:01.9]}
35... Qxe4+ {[%clk 0:00:23.2]} 0-1

[Event "Early-Titled-Tuesday-Blitz-May-07-2024"]
[Site "Chess.com"]
[Date "2024.05.07"]
[Round "8"]
[White "Yaacovn"]
[Black "Bykov_Egor"]
[Result "1-0"]
[WhiteElo "2853"]
[BlackElo "2634"]
[TimeControl "180+1"]
[EndTime "9:34:28 PDT"]
[Termination "Yaacovn won by resignation"]

1. d4 {[%clk 0:03:00]} 1... Nf6 {[%clk 0:03:00.6]} 2. e3 {[%clk 0:02:50.7]} 2...
g6 {[%clk 0:02:59]} 3. Nf3 {[%clk 0:02:46.3]} 3... Bg7 {[%clk 0:02:59.6]} 4. Be2
{[%clk 0:02:41.9]} 4... d6 {[%clk 0:02:58.4]} 5. O-O {[%clk 0:02:41]} 5... O-O
{[%clk 0:02:59]} 6. b3 {[%clk 0:02:39.4]} 6... b6 {[%clk 0:02:55.4]} 7. Bb2
{[%clk 0:02:40]} 7... c5 {[%clk 0:02:53.5]} 8. c4 {[%clk 0:02:37]} 8... cxd4
{[%clk 0:02:49.2]} 9. Nxd4 {[%clk 0:02:34.8]} 9... Bb7 {[%clk 0:02:47.2]} 10.
Bf3 {[%clk 0:02:31.5]} 10... Qc8 {[%clk 0:02:45.6]} 11. Nc3 {[%clk 0:02:21.6]}
11... Nbd7 {[%clk 0:02:41.6]} 12. Rc1 {[%clk 0:02:20.7]} 12... Ne5 {[%clk
0:02:37.8]} 13. Be2 {[%clk 0:02:20.1]} 13... Rd8 {[%clk 0:02:34.1]} 14. Nd5
{[%clk 0:02:19.4]} 14... Qd7 {[%clk 0:02:22.1]} 15. Bf3 {[%clk 0:02:13]} 15...
e6 {[%clk 0:01:50]} 16. Nxf6+ {[%clk 0:02:08.4]} 16... Bxf6 {[%clk 0:01:50.9]}
17. Bxb7 {[%clk 0:02:06.5]} 17... Qxb7 {[%clk 0:01:51.8]} 18. Qe2 {[%clk
0:02:07.2]} 18... a6 {[%clk 0:01:28.7]} 19. Rc2 {[%clk 0:02:00.9]} 19... Bg7
{[%clk 0:01:26.6]} 20. Rd1 {[%clk 0:01:52.6]} 20... Rac8 {[%clk 0:01:20.6]} 21.
h3 {[%clk 0:01:51.4]} 21... Qe4 {[%clk 0:01:19.4]} 22. Rcd2 {[%clk 0:01:50.6]}
22... Rd7 {[%clk 0:01:17.5]} 23. Qf1 {[%clk 0:01:34.3]} 23... Rcd8 {[%clk
0:01:11.5]} 24. Ne2 {[%clk 0:01:32.9]} 24... Qc6 {[%clk 0:01:04]} 25. Nd4 {[%clk
0:01:27.3]} 25... Qe4 {[%clk 0:01:02.3]} 26. Ba1 {[%clk 0:01:27.3]} 26... d5
{[%clk 0:00:53.3]} 27. cxd5 {[%clk 0:01:20.7]} 27... Rxd5 {[%clk 0:00:52.7]} 28.
Qxa6 {[%clk 0:01:17.9]} 28... h5 {[%clk 0:00:30.2]} 29. Qxb6 {[%clk 0:01:14.1]}
29... Ra8 {[%clk 0:00:22.5]} 30. a4 {[%clk 0:01:05.8]} 30... Nd7 {[%clk
0:00:22.5]} 31. Qc7 {[%clk 0:00:59.2]} 31... Rg5 {[%clk 0:00:19.8]} 32. Qh2
{[%clk 0:00:51.7]} 32... Be5 {[%clk 0:00:20.4]} 33. Qh1 {[%clk 0:00:49.9]} 33...
Nb6 {[%clk 0:00:13.7]} 34. g3 {[%clk 0:00:47.8]} 34... Qxh1+ {[%clk 0:00:10.1]}
35. Kxh1 {[%clk 0:00:48.7]} 35... Nd5 {[%clk 0:00:07.7]} 36. e4 {[%clk
0:00:39.7]} 36... Nf6 {[%clk 0:00:05.1]} 37. Nf3 {[%clk 0:00:38.9]} 37... Bxa1
{[%clk 0:00:05.1]} 38. Nxg5 {[%clk 0:00:38.5]} 38... Bc3 {[%clk 0:00:05.8]} 39.
Rc2 {[%clk 0:00:38.5]} 39... Bb4 {[%clk 0:00:05.1]} 40. Kg2 {[%clk 0:00:35.1]}
40... Rb8 {[%clk 0:00:05.4]} 41. Rdc1 {[%clk 0:00:34.4]} 41... Kg7 {[%clk
0:00:05]} 42. Rc7 {[%clk 0:00:34.2]} 1-0

[Event "Early-Titled-Tuesday-Blitz-May-07-2024"]
[Site "Chess.com"]
[Date "2024.05.07"]
[Round "8"]
[White "ilqar_74"]
[Black "jinbojinbo"]
[Result "1-0"]
[WhiteElo "2826"]
[BlackElo "2643"]
[TimeControl "180+1"]
[EndTime "9:34:28 PDT"]
[Termination "ilqar_74 won by resignation"]

1. e4 {[%clk 0:03:00.9]} 1... e5 {[%clk 0:02:59.6]} 2. Nf3 {[%clk 0:02:57.2]}
2... Nc6 {[%clk 0:02:59.5]} 3. Bb5 {[%clk 0:02:57.7]} 3... a6 {[%clk 0:02:58.4]}
4. Ba4 {[%clk 0:02:57.2]} 4... Nf6 {[%clk 0:02:58.5]} 5. O-O {[%clk 0:02:57.3]}
5... b5 {[%clk 0:02:51.2]} 6. Bb3 {[%clk 0:02:57.3]} 6... Bb7 {[%clk 0:02:51.2]}
7. d4 {[%clk 0:02:54.4]} 7... Nxd4 {[%clk 0:02:44.4]} 8. Nxd4 {[%clk 0:02:54]}
8... exd4 {[%clk 0:02:42.8]} 9. e5 {[%clk 0:02:54.5]} 9... Ne4 {[%clk
0:02:36.2]} 10. Qf3 {[%clk 0:02:25.7]} 10... Qe7 {[%clk 0:02:35.4]} 11. Nd2
{[%clk 0:02:10.2]} 11... Nc5 {[%clk 0:02:31.3]} 12. Qf4 {[%clk 0:02:06.8]} 12...
Nxb3 {[%clk 0:02:25.9]} 13. axb3 {[%clk 0:02:05]} 13... c5 {[%clk 0:02:15.6]}
14. Ne4 {[%clk 0:02:02.8]} 14... Qe6 {[%clk 0:02:14]} 15. Re1 {[%clk 0:01:32.5]}
15... Be7 {[%clk 0:02:06.2]} 16. Bd2 {[%clk 0:01:32.1]} 16... O-O {[%clk
0:02:05.2]} 17. Ng3 {[%clk 0:01:26.4]} 17... Qg6 {[%clk 0:01:56.5]} 18. f3
{[%clk 0:01:09]} 18... Rfe8 {[%clk 0:01:35.2]} 19. Nf5 {[%clk 0:01:03.7]} 19...
Bf8 {[%clk 0:01:35.2]} 20. h4 {[%clk 0:00:58.5]} 20... Bd5 {[%clk 0:01:30]} 21.
g4 {[%clk 0:00:53.1]} 21... Qc6 {[%clk 0:01:20.7]} 22. Kf2 {[%clk 0:00:49.9]}
22... c4 {[%clk 0:01:17.4]} 23. Nxd4 {[%clk 0:00:47.9]} 23... Qb7 {[%clk
0:01:06.4]} 24. b4 {[%clk 0:00:45.4]} 24... Rad8 {[%clk 0:01:04.4]} 25. Nf5
{[%clk 0:00:39.8]} 25... Qc6 {[%clk 0:00:56.3]} 26. c3 {[%clk 0:00:38.2]} 26...
Be6 {[%clk 0:00:55.5]} 27. Nd4 {[%clk 0:00:38.5]} 27... Qb7 {[%clk 0:00:54.5]}
28. h5 {[%clk 0:00:34.9]} 28... d6 {[%clk 0:00:50.9]} 29. h6 {[%clk 0:00:35.3]}
29... dxe5 {[%clk 0:00:50.1]} 30. Qxe5 {[%clk 0:00:29.7]} 30... Bxg4 {[%clk
0:00:23.4]} 31. Qg3 {[%clk 0:00:23.8]} 31... Rxe1 {[%clk 0:00:19.9]} 32. Rxe1
{[%clk 0:00:24.7]} 32... Bh5 {[%clk 0:00:16.2]} 33. hxg7 {[%clk 0:00:25]} 33...
Bd6 {[%clk 0:00:16]} 34. Qg5 {[%clk 0:00:20.6]} 34... Bg6 {[%clk 0:00:15.6]} 35.
Qxd8+ {[%clk 0:00:20.5]} 35... Kxg7 {[%clk 0:00:15.5]} 36. Qxd6 {[%clk
0:00:20.6]} 1-0

[Event "Early-Titled-Tuesday-Blitz-May-07-2024"]
[Site "Chess.com"]
[Date "2024.05.07"]
[Round "8"]
[White "RebecaJimnz"]
[Black "imdvb6307"]
[Result "0-1"]
[WhiteElo "2292"]
[BlackElo "2519"]
[TimeControl "180+1"]
[EndTime "9:34:30 PDT"]
[Termination "imdvb6307 won on time"]

1. e4 {[%clk 0:03:00.9]} 1... Nc6 {[%clk 0:03:00.1]} 2. Nf3 {[%clk 0:03:00.2]}
2... d6 {[%clk 0:03:00.2]} 3. d4 {[%clk 0:02:59.9]} 3... Nf6 {[%clk 0:03:00.5]}
4. Nc3 {[%clk 0:02:59.8]} 4... Bg4 {[%clk 0:03:01]} 5. Be3 {[%clk 0:02:58.5]}
5... e6 {[%clk 0:03:00.8]} 6. Be2 {[%clk 0:02:58.6]} 6... d5 {[%clk 0:03:00.6]}
7. e5 {[%clk 0:02:55]} 7... Nd7 {[%clk 0:03:00.6]} 8. Qd2 {[%clk 0:02:53]} 8...
Na5 {[%clk 0:02:27.8]} 9. Nxd5 {[%clk 0:02:41.8]} 9... Bxf3 {[%clk 0:02:20]} 10.
gxf3 {[%clk 0:02:31.2]} 10... exd5 {[%clk 0:02:19.6]} 11. Qxa5 {[%clk
0:02:30.3]} 11... c6 {[%clk 0:02:15.4]} 12. Qxd8+ {[%clk 0:02:24]} 12... Rxd8
{[%clk 0:02:14.7]} 13. f4 {[%clk 0:02:17.7]} 13... f5 {[%clk 0:02:14.5]} 14. h4
{[%clk 0:01:59.9]} 14... Be7 {[%clk 0:02:10.8]} 15. h5 {[%clk 0:01:57.6]} 15...
Nf8 {[%clk 0:02:10.9]} 16. Bd3 {[%clk 0:01:50.8]} 16... Kf7 {[%clk 0:01:59.4]}
17. Bxf5 {[%clk 0:01:48.2]} 17... Ne6 {[%clk 0:01:58.8]} 18. O-O-O {[%clk
0:01:46.4]} 18... g6 {[%clk 0:01:57.7]} 19. hxg6+ {[%clk 0:01:45.7]} 19... hxg6
{[%clk 0:01:57.3]} 20. Bd3 {[%clk 0:01:37.3]} 20... Ng7 {[%clk 0:01:56.8]} 21.
Rxh8 {[%clk 0:01:29.6]} 21... Rxh8 {[%clk 0:01:55.9]} 22. Rg1 {[%clk 0:01:30.1]}
22... Nf5 {[%clk 0:01:55.8]} 23. c3 {[%clk 0:00:33.2]} 23... b5 {[%clk
0:01:54.1]} 24. Kd2 {[%clk 0:00:31.8]} 24... a5 {[%clk 0:01:50.3]} 25. Ke2
{[%clk 0:00:30.8]} 25... a4 {[%clk 0:01:49.7]} 26. b3 {[%clk 0:00:30.6]} 26...
Ra8 {[%clk 0:01:46.7]} 27. c4 {[%clk 0:00:26.2]} 27... axb3 {[%clk 0:01:41.5]}
28. axb3 {[%clk 0:00:26.1]} 28... Ra2+ {[%clk 0:01:06.7]} 29. Kf3 {[%clk
0:00:26.3]} 29... b4 {[%clk 0:01:06.8]} 30. cxd5 {[%clk 0:00:20.7]} 30... cxd5
{[%clk 0:01:06.6]} 31. Rc1 {[%clk 0:00:04.2]} 31... Rb2 {[%clk 0:01:05.4]} 32.
Rc7 {[%clk 0:00:03.2]} 32... Rxb3 {[%clk 0:01:02.9]} 33. Bxf5 {[%clk 0:00:03.4]}
33... gxf5 {[%clk 0:01:02.2]} 34. Kg3 {[%clk 0:00:03.2]} 34... Ra3 {[%clk
0:00:36.9]} 35. Rb7 {[%clk 0:00:03.2]} 35... Ke6 {[%clk 0:00:28.5]} 36. Kg2
{[%clk 0:00:01.2]} 36... Ra2 {[%clk 0:00:24.5]} 37. Bc1 {[%clk 0:00:01.1]} 37...
Rc2 {[%clk 0:00:23.9]} 38. Be3 {[%clk 0:00:00.5]} 38... Rb2 {[%clk 0:00:24.3]}
0-1

[Event "Early-Titled-Tuesday-Blitz-May-07-2024"]
[Site "Chess.com"]
[Date "2024.05.07"]
[Round "8"]
[White "IlanSchnaider"]
[Black "tptagain"]
[Result "0-1"]
[WhiteElo "2725"]
[BlackElo "2924"]
[TimeControl "180+1"]
[EndTime "9:34:31 PDT"]
[Termination "tptagain won by resignation"]

1. d4 {[%clk 0:03:00.9]} 1... d5 {[%clk 0:02:59.6]} 2. c4 {[%clk 0:03:00.2]}
2... e6 {[%clk 0:03:00]} 3. Nf3 {[%clk 0:03:00]} 3... dxc4 {[%clk 0:02:58.3]} 4.
e3 {[%clk 0:02:59.5]} 4... Nf6 {[%clk 0:02:58.6]} 5. Bxc4 {[%clk 0:02:59.7]}
5... c5 {[%clk 0:02:59.1]} 6. O-O {[%clk 0:02:59.6]} 6... Nc6 {[%clk 0:02:59.5]}
7. dxc5 {[%clk 0:02:35.6]} 7... Qxd1 {[%clk 0:02:58.4]} 8. Rxd1 {[%clk
0:02:35.8]} 8... Bxc5 {[%clk 0:02:59.3]} 9. Nc3 {[%clk 0:02:36.5]} 9... O-O
{[%clk 0:02:53.7]} 10. a3 {[%clk 0:02:14.4]} 10... Be7 {[%clk 0:02:52.2]} 11. b4
{[%clk 0:02:12.2]} 11... b6 {[%clk 0:02:40.8]} 12. Bb2 {[%clk 0:02:08.4]} 12...
Bb7 {[%clk 0:02:40.8]} 13. Rac1 {[%clk 0:01:55.3]} 13... Rfd8 {[%clk 0:02:37.7]}
14. Nb5 {[%clk 0:01:33.2]} 14... a5 {[%clk 0:02:21.6]} 15. Nc7 {[%clk
0:00:39.5]} 15... Rxd1+ {[%clk 0:02:16.2]} 16. Rxd1 {[%clk 0:00:39.5]} 16... Rc8
{[%clk 0:02:16]} 17. Nxe6 {[%clk 0:00:32.5]} 17... axb4 {[%clk 0:02:01.8]} 18.
axb4 {[%clk 0:00:14.6]} 18... Nxb4 {[%clk 0:01:54.1]} 19. Bb3 {[%clk 0:00:15]}
19... fxe6 {[%clk 0:01:51.4]} 20. Bxe6+ {[%clk 0:00:15.1]} 20... Kf8 {[%clk
0:01:51.3]} 21. Bxc8 {[%clk 0:00:13.3]} 21... Bxc8 {[%clk 0:01:52.2]} 22. Bd4
{[%clk 0:00:08.4]} 22... b5 {[%clk 0:01:43.5]} 23. Rb1 {[%clk 0:00:06.7]} 23...
Bd7 {[%clk 0:01:41.1]} 24. Ne5 {[%clk 0:00:06.9]} 24... Be8 {[%clk 0:01:41.5]}
25. f3 {[%clk 0:00:03]} 25... Nc6 {[%clk 0:01:38.1]} 26. Nxc6 {[%clk 0:00:01.4]}
26... Bxc6 {[%clk 0:01:39]} 27. Rc1 {[%clk 0:00:01.9]} 27... Bd5 {[%clk
0:01:32.4]} 28. e4 {[%clk 0:00:01.7]} 28... Bc4 {[%clk 0:01:31.8]} 29. Kf2
{[%clk 0:00:01.7]} 29... Nd7 {[%clk 0:01:27.3]} 30. Ke3 {[%clk 0:00:01.5]} 30...
Nc5 {[%clk 0:01:20.7]} 31. Ra1 {[%clk 0:00:02]} 31... Ne6 {[%clk 0:01:16]} 32.
Ra8+ {[%clk 0:00:01.9]} 32... Kf7 {[%clk 0:01:16.4]} 33. Bc3 {[%clk 0:00:02.5]}
33... b4 {[%clk 0:01:14.7]} 34. Bb2 {[%clk 0:00:02.4]} 34... Bg5+ {[%clk
0:01:09.3]} 35. Kf2 {[%clk 0:00:02]} 35... Bf6 {[%clk 0:00:50.6]} 36. Ra7+
{[%clk 0:00:02]} 36... Ke8 {[%clk 0:00:48.6]} 37. e5 {[%clk 0:00:02.2]} 37...
Be7 {[%clk 0:00:47.6]} 38. Ra4 {[%clk 0:00:01.3]} 38... Bc5+ {[%clk 0:00:46.7]}
39. Ke1 {[%clk 0:00:02]} 39... Bd5 {[%clk 0:00:44.8]} 40. Ra5 {[%clk 0:00:02]}
40... Kd7 {[%clk 0:00:43.8]} 41. f4 {[%clk 0:00:02.4]} 41... b3 {[%clk
0:00:33.5]} 42. f5 {[%clk 0:00:02.6]} 42... Bb4+ {[%clk 0:00:33.8]} 43. Bc3
{[%clk 0:00:02.7]} 43... Bxa5 {[%clk 0:00:33.9]} 44. fxe6+ {[%clk 0:00:02.8]}
44... Kxe6 {[%clk 0:00:34.2]} 45. Bxa5 {[%clk 0:00:03.7]} 45... b2 {[%clk
0:00:34.7]} 0-1

[Event "Early-Titled-Tuesday-Blitz-May-07-2024"]
[Site "Chess.com"]
[Date "2024.05.07"]
[Round "8"]
[White "Yerkinio"]
[Black "BeReal24"]
[Result "1-0"]
[WhiteElo "2665"]
[BlackElo "2493"]
[TimeControl "180+1"]
[EndTime "9:34:39 PDT"]
[Termination "Yerkinio won by checkmate"]

1. e4 {[%clk 0:02:53.7]} 1... c5 {[%clk 0:02:59.5]} 2. Nf3 {[%clk 0:02:52.7]}
2... d6 {[%clk 0:02:59.2]} 3. d4 {[%clk 0:02:52.3]} 3... cxd4 {[%clk 0:02:58.9]}
4. Nxd4 {[%clk 0:02:53.2]} 4... Nf6 {[%clk 0:02:59.1]} 5. Nc3 {[%clk 0:02:53.8]}
5... a6 {[%clk 0:02:58.3]} 6. Bg5 {[%clk 0:02:53.3]} 6... e6 {[%clk 0:02:56.3]}
7. f4 {[%clk 0:02:53.1]} 7... Be7 {[%clk 0:02:56]} 8. Qf3 {[%clk 0:02:52.7]}
8... Qc7 {[%clk 0:02:56.3]} 9. O-O-O {[%clk 0:02:53]} 9... Nbd7 {[%clk
0:02:56.2]} 10. g4 {[%clk 0:02:53.1]} 10... b5 {[%clk 0:02:56.2]} 11. Bxf6
{[%clk 0:02:44.2]} 11... Nxf6 {[%clk 0:02:57.1]} 12. g5 {[%clk 0:02:44.4]} 12...
Nd7 {[%clk 0:02:57.6]} 13. f5 {[%clk 0:02:44.9]} 13... Nc5 {[%clk 0:02:57.9]}
14. f6 {[%clk 0:02:39.4]} 14... gxf6 {[%clk 0:02:55.9]} 15. gxf6 {[%clk
0:02:40.3]} 15... Bf8 {[%clk 0:02:56.3]} 16. Kb1 {[%clk 0:02:32.2]} 16... b4
{[%clk 0:02:54.1]} 17. Nd5 {[%clk 0:02:28.4]} 17... exd5 {[%clk 0:02:52.2]} 18.
exd5 {[%clk 0:02:29.3]} 18... Nd7 {[%clk 0:02:52.5]} 19. Nc6 {[%clk 0:02:00.8]}
19... Bb7 {[%clk 0:02:51]} 20. Bh3 {[%clk 0:01:38.8]} 20... Bxc6 {[%clk
0:02:48.8]} 21. dxc6 {[%clk 0:01:36.7]} 21... Ne5 {[%clk 0:02:48.9]} 22. Rhe1
{[%clk 0:01:33.5]} 22... h5 {[%clk 0:02:22.6]} 23. Qb3 {[%clk 0:00:30.1]} 23...
Rd8 {[%clk 0:02:04.5]} 24. Rxe5+ {[%clk 0:00:26.6]} 24... dxe5 {[%clk
0:02:03.6]} 25. Bd7+ {[%clk 0:00:27.2]} 25... Rxd7 {[%clk 0:01:58.3]} 26. Rxd7
{[%clk 0:00:27.2]} 26... Qxd7 {[%clk 0:01:58.5]} 27. cxd7+ {[%clk 0:00:28.1]}
27... Kxd7 {[%clk 0:01:58.9]} 28. Qxf7+ {[%clk 0:00:28.4]} 28... Kc6 {[%clk
0:01:57.5]} 29. Qe6+ {[%clk 0:00:25.6]} 29... Bd6 {[%clk 0:01:56.6]} 30. Qc4+
{[%clk 0:00:20.4]} 30... Kd7 {[%clk 0:01:54.3]} 31. Qxa6 {[%clk 0:00:18.6]}
31... Rf8 {[%clk 0:01:52.4]} 32. Qf1 {[%clk 0:00:12.7]} 32... Kc7 {[%clk
0:01:37.7]} 33. Qf5 {[%clk 0:00:11.7]} 33... h4 {[%clk 0:01:28]} 34. h3 {[%clk
0:00:10.9]} 34... e4 {[%clk 0:01:22.8]} 35. Qxe4 {[%clk 0:00:08.6]} 35... Rxf6
{[%clk 0:01:20.1]} 36. Qc4+ {[%clk 0:00:07.9]} 36... Kd7 {[%clk 0:01:19]} 37. c3
{[%clk 0:00:05.4]} 37... bxc3 {[%clk 0:01:16.9]} 38. Qxc3 {[%clk 0:00:06.3]}
38... Rf1+ {[%clk 0:01:15]} 39. Kc2 {[%clk 0:00:06.5]} 39... Rf2+ {[%clk
0:01:11.7]} 40. Kb3 {[%clk 0:00:06.4]} 40... Bg3 {[%clk 0:01:12.2]} 41. Qd3+
{[%clk 0:00:05.6]} 41... Ke6 {[%clk 0:01:11.8]} 42. Qe4+ {[%clk 0:00:05.7]}
42... Kf6 {[%clk 0:01:11.2]} 43. a4 {[%clk 0:00:05.3]} 43... Rf4 {[%clk
0:01:09.4]} 44. Qc6+ {[%clk 0:00:05.4]} 44... Kf5 {[%clk 0:01:08.2]} 45. a5
{[%clk 0:00:05.9]} 45... Re4 {[%clk 0:01:04.9]} 46. a6 {[%clk 0:00:05.6]} 46...
Re6 {[%clk 0:01:03.9]} 47. Qxe6+ {[%clk 0:00:05.7]} 47... Kxe6 {[%clk
0:01:03.3]} 48. a7 {[%clk 0:00:06.6]} 48... Kf5 {[%clk 0:01:03.4]} 49. a8=Q
{[%clk 0:00:07.5]} 49... Kf4 {[%clk 0:01:04.3]} 50. Qc8 {[%clk 0:00:07.9]} 50...
Kf3 {[%clk 0:01:04.5]} 51. Kc4 {[%clk 0:00:08.3]} 51... Kg2 {[%clk 0:01:04.7]}
52. Qg4 {[%clk 0:00:08.9]} 52... Kh2 {[%clk 0:01:05.2]} 53. b4 {[%clk
0:00:09.8]} 53... Bf2 {[%clk 0:01:05.2]} 54. b5 {[%clk 0:00:10.7]} 54... Bg3
{[%clk 0:01:06.1]} 55. Kd5 {[%clk 0:00:10.9]} 55... Bf2 {[%clk 0:01:07]} 56. Kc6
{[%clk 0:00:11.5]} 56... Bg3 {[%clk 0:01:07.9]} 57. b6 {[%clk 0:00:12.1]} 57...
Kh1 {[%clk 0:01:07.1]} 58. b7 {[%clk 0:00:11.9]} 58... Kh2 {[%clk 0:01:07.1]}
59. Kd7 {[%clk 0:00:12.2]} 59... Bb8 {[%clk 0:01:06.8]} 60. Kc8 {[%clk
0:00:12.4]} 60... Bg3 {[%clk 0:01:04.5]} 61. b8=Q {[%clk 0:00:12.7]} 61... Bxb8
{[%clk 0:01:04.4]} 62. Kxb8 {[%clk 0:00:12.3]} 62... Kh1 {[%clk 0:01:05.3]} 63.
Kc7 {[%clk 0:00:12.9]} 63... Kh2 {[%clk 0:01:06.2]} 64. Kd6 {[%clk 0:00:13.8]}
64... Kh1 {[%clk 0:01:07.1]} 65. Ke5 {[%clk 0:00:14.7]} 65... Kh2 {[%clk
0:01:08]} 66. Kf4 {[%clk 0:00:15.6]} 66... Kh1 {[%clk 0:01:08.9]} 67. Kf3 {[%clk
0:00:16.5]} 67... Kh2 {[%clk 0:01:09.8]} 68. Qg2# {[%clk 0:00:17.3]} 1-0